[Event "Titled Tuesday Blitz October 26 2021"]
[White "Yaksin, Oleg"]
[Black "Zierk, Steven"]
[WhiteFideId "24105880"]
[BlackFideId "2034255"]
[WhiteElo "2256"]
[BlackElo "2494"]
[Result "0-1"]
[Round "03"]
[TimeControl "180+1"]
[Date "2021.10.26"]
[WhiteClock "0:00:01"]
[BlackClock "0:00:44"]

1. d4 {[%clk 0:02:40]}  d5 {[%clk 0:02:50]} 2. c4 {[%clk 0:02:40]}  dxc4 {[%clk 0:02:51]} 3. e4 {[%clk 0:02:38]}  Nf6 {[%clk 0:02:51]} 4. e5 {[%clk 0:02:36]}  Nd5 {[%clk 0:02:51]} 5. Bxc4 {[%clk 0:02:37]}  Nc6 {[%clk 0:02:52]} 6. Ne2 {[%clk 0:02:26]}  Bf5 {[%clk 0:02:51]} 7. a3 {[%clk 0:02:22]}  e6 {[%clk 0:02:44]} 8. Nbc3 {[%clk 0:02:20]}  Nb6 {[%clk 0:02:42]} 9. Bb3 {[%clk 0:02:11]}  Be7 {[%clk 0:02:36]} 10. O-O {[%clk 0:02:10]}  Qd7 {[%clk 0:02:33]} 11. Be3 {[%clk 0:02:06]}  O-O-O {[%clk 0:02:33]} 12. Bc2 {[%clk 0:01:51]}  Bxc2 {[%clk 0:02:29]} 13. Qxc2 {[%clk 0:01:52]}  h5 {[%clk 0:02:13]} 14. b4 {[%clk 0:01:51]}  h4 {[%clk 0:02:07]} 15. h3 {[%clk 0:01:15]}  f5 {[%clk 0:02:03]} 16. f4 {[%clk 0:01:11]}  g5 {[%clk 0:01:54]} 17. fxg5 {[%clk 0:01:10]}  Rhg8 {[%clk 0:01:53]} 18. Rfd1 {[%clk 0:01:09]}  Bxg5 {[%clk 0:01:49]} 19. Bxg5 {[%clk 0:01:10]}  Rxg5 {[%clk 0:01:49]} 20. Nf4 {[%clk 0:01:10]}  Nxd4 {[%clk 0:01:27]} 21. Qf2 {[%clk 0:01:06]}  Rg3 {[%clk 0:01:23]} 22. Nce2 {[%clk 0:00:43]}  Nf3+ {[%clk 0:01:19]} 23. Qxf3 {[%clk 0:00:19]}  Qxd1+ {[%clk 0:01:19]} 24. Qf1 {[%clk 0:00:19]}  Qb3 {[%clk 0:01:13]} 25. Nxg3 {[%clk 0:00:18]}  hxg3 {[%clk 0:01:10]} 26. Re1 {[%clk 0:00:14]}  Rd2 {[%clk 0:01:05]} 27. h4 {[%clk 0:00:13]}  Qc3 {[%clk 0:00:47]} 28. Qf3 {[%clk 0:00:01]}  Qd4+ {[%clk 0:00:44]} 0-1


[Site "https://www.chess.com"]

[Event "Titled Tuesday Blitz October 26 2021"]
[White "Andreikin, Dmitry"]
[Black "Papasimakopoulos, Alexandros"]
[WhiteFideId "4158814"]
[BlackFideId "4244125"]
[WhiteElo "2736"]
[BlackElo "2352"]
[Result "1-0"]
[Round "04"]
[TimeControl "180+1"]
[Date "2021.10.26"]
[WhiteClock "0:00:16"]
[BlackClock "0:00:20"]

1. e4 {[%clk 0:03:00]}  e6 {[%clk 0:02:59]} 2. d4 {[%clk 0:03:00]}  d5 {[%clk 0:02:59]} 3. Nc3 {[%clk 0:03:00]}  Bb4 {[%clk 0:02:59]} 4. Qd3 {[%clk 0:03:00]}  dxe4 {[%clk 0:02:57]} 5. Qxe4 {[%clk 0:03:00]}  Nf6 {[%clk 0:02:57]} 6. Qh4 {[%clk 0:03:00]}  Nc6 {[%clk 0:02:58]} 7. Nf3 {[%clk 0:03:00]}  Ne7 {[%clk 0:02:58]} 8. Bd3 {[%clk 0:03:00]}  Nf5 {[%clk 0:02:58]} 9. Bxf5 {[%clk 0:02:59]}  exf5 {[%clk 0:02:59]} 10. Bg5 {[%clk 0:02:57]}  Qe7+ {[%clk 0:02:58]} 11. Kf1 {[%clk 0:02:53]}  Qe6 {[%clk 0:02:48]} 12. Bxf6 {[%clk 0:02:34]}  Qxf6 {[%clk 0:02:48]} 13. Qxf6 {[%clk 0:02:33]}  gxf6 {[%clk 0:02:49]} 14. Nd5 {[%clk 0:02:33]}  Bd6 {[%clk 0:02:47]} 15. Nxf6+ {[%clk 0:02:27]}  Kf8 {[%clk 0:02:45]} 16. Re1 {[%clk 0:02:25]}  Be6 {[%clk 0:02:37]} 17. d5 {[%clk 0:02:23]}  Kg7 {[%clk 0:02:30]} 18. Nh5+ {[%clk 0:02:21]}  Kg6 {[%clk 0:02:30]} 19. dxe6 {[%clk 0:02:18]}  Kxh5 {[%clk 0:02:30]} 20. exf7 {[%clk 0:02:17]}  Kg6 {[%clk 0:02:28]} 21. Ne5+ {[%clk 0:01:53]}  Kf6 {[%clk 0:02:11]} 22. f8=Q+ {[%clk 0:01:52]}  Bxf8 {[%clk 0:02:08]} 23. Nd7+ {[%clk 0:01:51]}  Kf7 {[%clk 0:02:07]} 24. Nxf8 {[%clk 0:01:50]}  Rhxf8 {[%clk 0:02:08]} 25. f3 {[%clk 0:01:39]}  Rad8 {[%clk 0:01:59]} 26. Kf2 {[%clk 0:01:39]}  Rd2+ {[%clk 0:01:37]} 27. Re2 {[%clk 0:01:39]}  Rfd8 {[%clk 0:01:37]} 28. Re1 {[%clk 0:01:39]}  Kf6 {[%clk 0:01:38]} 29. a4 {[%clk 0:01:31]}  h5 {[%clk 0:01:37]} 30. Kg3 {[%clk 0:01:27]}  Rg8+ {[%clk 0:01:35]} 31. Kh3 {[%clk 0:01:25]}  Rxe2 {[%clk 0:01:32]} 32. Rxe2 {[%clk 0:01:25]}  f4 {[%clk 0:01:19]} 33. Kh4 {[%clk 0:01:20]}  a5 {[%clk 0:01:08]} 34. Rd2 {[%clk 0:01:09]}  b6 {[%clk 0:01:03]} 35. b3 {[%clk 0:01:02]}  Kf5 {[%clk 0:01:01]} 36. Rd5+ {[%clk 0:01:01]}  Kf6 {[%clk 0:01:00]} 37. g3 {[%clk 0:00:56]}  Re8 {[%clk 0:01:00]} 38. Rxh5 {[%clk 0:00:48]}  Re2 {[%clk 0:00:59]} 39. Rh6+ {[%clk 0:00:47]}  Ke5 {[%clk 0:00:47]} 40. gxf4+ {[%clk 0:00:30]}  Kxf4 {[%clk 0:00:46]} 41. Rf6+ {[%clk 0:00:30]}  Ke5 {[%clk 0:00:46]} 42. Rc6 {[%clk 0:00:30]}  Kf4 {[%clk 0:00:46]} 43. Rc4+ {[%clk 0:00:25]}  Kf5 {[%clk 0:00:46]} 44. Rxc7 {[%clk 0:00:22]}  Rg2 {[%clk 0:00:38]} 45. Kh3 {[%clk 0:00:19]}  Rg6 {[%clk 0:00:36]} 46. Rc4 {[%clk 0:00:19]}  Rg8 {[%clk 0:00:24]} 47. Rg4 {[%clk 0:00:19]}  Rc8 {[%clk 0:00:23]} 48. c4 {[%clk 0:00:18]}  Rd8 {[%clk 0:00:23]} 49. Kg3 {[%clk 0:00:14]}  Rd3 {[%clk 0:00:23]} 50. h4 {[%clk 0:00:15]}  Rxb3 {[%clk 0:00:20]} 51. Rg5+ {[%clk 0:00:15]}  Kf6 {[%clk 0:00:21]} 52. Rb5 {[%clk 0:00:15]}  Rc3 {[%clk 0:00:21]} 53. Rxb6+ {[%clk 0:00:15]}  Kf7 {[%clk 0:00:20]} 54. Rb5 {[%clk 0:00:15]}  Rxc4 {[%clk 0:00:20]} 55. Rxa5 {[%clk 0:00:16]} 1-0


[Site "https://www.chess.com"]

[Event "Titled Tuesday Blitz October 26 2021"]
[White "Barp, Alberto"]
[Black "Hakobyan, Aram"]
[WhiteFideId "872555"]
[BlackFideId "13306677"]
[WhiteElo "2229"]
[BlackElo "2557"]
[Result "0-1"]
[Round "04"]
[TimeControl "180+1"]
[Date "2021.10.26"]
[WhiteClock "0:00:11"]
[BlackClock "0:00:38"]

1. d4 {[%clk 0:03:00]}  Nf6 {[%clk 0:02:58]} 2. c4 {[%clk 0:02:58]}  g6 {[%clk 0:02:58]} 3. g3 {[%clk 0:02:53]}  d6 {[%clk 0:02:56]} 4. Bg2 {[%clk 0:02:53]}  Bg7 {[%clk 0:02:57]} 5. Nc3 {[%clk 0:02:52]}  O-O {[%clk 0:02:58]} 6. Nf3 {[%clk 0:02:49]}  c6 {[%clk 0:02:57]} 7. O-O {[%clk 0:02:50]}  Bf5 {[%clk 0:02:58]} 8. Ng5 {[%clk 0:02:12]}  e5 {[%clk 0:02:44]} 9. d5 {[%clk 0:02:07]}  h6 {[%clk 0:02:40]} 10. e4 {[%clk 0:01:56]}  Bg4 {[%clk 0:02:36]} 11. f3 {[%clk 0:01:57]}  Bd7 {[%clk 0:02:33]} 12. Nh3 {[%clk 0:01:56]}  cxd5 {[%clk 0:02:33]} 13. cxd5 {[%clk 0:01:53]}  Na6 {[%clk 0:02:29]} 14. Be3 {[%clk 0:01:53]}  Nc5 {[%clk 0:02:23]} 15. Nf2 {[%clk 0:01:53]}  a5 {[%clk 0:02:19]} 16. Rc1 {[%clk 0:01:47]}  b6 {[%clk 0:02:18]} 17. Qd2 {[%clk 0:01:43]}  Kh7 {[%clk 0:02:14]} 18. f4 {[%clk 0:01:36]}  exf4 {[%clk 0:02:05]} 19. gxf4 {[%clk 0:01:24]}  Re8 {[%clk 0:02:05]} 20. Bd4 {[%clk 0:01:22]}  Rc8 {[%clk 0:01:42]} 21. Rce1 {[%clk 0:01:13]}  Nh5 {[%clk 0:01:30]} 22. e5 {[%clk 0:01:00]}  Bf5 {[%clk 0:01:24]} 23. Nb5 {[%clk 0:00:41]}  dxe5 {[%clk 0:01:03]} 24. fxe5 {[%clk 0:00:42]}  Qh4 {[%clk 0:01:03]} 25. Nd6 {[%clk 0:00:39]}  Nf4 {[%clk 0:01:02]} 26. Nxc8 {[%clk 0:00:24]}  Qg5 {[%clk 0:00:59]} 27. Ng4 {[%clk 0:00:10]}  Nh3+ {[%clk 0:00:54]} 28. Bxh3 {[%clk 0:00:11]}  Qxd2 {[%clk 0:00:54]} 29. Be3 {[%clk 0:00:11]}  Qxd5 {[%clk 0:00:47]} 30. Nd6 {[%clk 0:00:11]}  Bxg4 {[%clk 0:00:37]} 31. Bxg4 {[%clk 0:00:12]}  Rxe5 {[%clk 0:00:37]} 32. Nxf7 {[%clk 0:00:10]}  Rxe3 {[%clk 0:00:38]} 33. Rxe3 {[%clk 0:00:11]}  Qd4 {[%clk 0:00:38]} 0-1


[Site "https://www.chess.com"]

[Event "Titled Tuesday Blitz October 26 2021"]
[White "Baskin, Robert"]
[Black "Sorokin, Aleksey"]
[WhiteFideId "24662402"]
[BlackFideId "24176460"]
[WhiteElo "2521"]
[BlackElo "2476"]
[Result "0-1"]
[Round "04"]
[TimeControl "180+1"]
[Date "2021.10.26"]
[WhiteClock "0:00:08"]
[BlackClock "0:01:23"]

1. e4 {[%clk 0:03:00]}  c5 {[%clk 0:02:54]} 2. Nf3 {[%clk 0:03:00]}  d6 {[%clk 0:02:53]} 3. Bb5+ {[%clk 0:02:59]}  Nd7 {[%clk 0:02:53]} 4. c4 {[%clk 0:02:55]}  g6 {[%clk 0:02:50]} 5. O-O {[%clk 0:02:53]}  Bg7 {[%clk 0:02:51]} 6. Nc3 {[%clk 0:02:53]}  Nf6 {[%clk 0:02:50]} 7. d4 {[%clk 0:02:52]}  cxd4 {[%clk 0:02:49]} 8. Nxd4 {[%clk 0:02:53]}  O-O {[%clk 0:02:48]} 9. h3 {[%clk 0:02:37]}  Nb6 {[%clk 0:02:48]} 10. Qd3 {[%clk 0:02:11]}  a6 {[%clk 0:02:45]} 11. Ba4 {[%clk 0:02:10]}  Nxa4 {[%clk 0:02:45]} 12. Nxa4 {[%clk 0:02:11]}  b5 {[%clk 0:02:45]} 13. Nc3 {[%clk 0:02:04]}  bxc4 {[%clk 0:02:42]} 14. Qxc4 {[%clk 0:02:05]}  Bb7 {[%clk 0:02:38]} 15. Re1 {[%clk 0:02:04]}  Qb6 {[%clk 0:02:34]} 16. Be3 {[%clk 0:01:55]}  Rfc8 {[%clk 0:02:33]} 17. Qd3 {[%clk 0:01:44]}  Qxb2 {[%clk 0:02:27]} 18. Na4 {[%clk 0:01:28]}  Qb4 {[%clk 0:02:23]} 19. Reb1 {[%clk 0:01:18]}  Qxa4 {[%clk 0:02:12]} 20. Rxb7 {[%clk 0:01:16]}  e5 {[%clk 0:02:12]} 21. Nf3 {[%clk 0:00:53]}  Qxe4 {[%clk 0:02:10]} 22. Qb3 {[%clk 0:00:35]}  Qd5 {[%clk 0:02:03]} 23. Rd1 {[%clk 0:00:35]}  Qxb3 {[%clk 0:02:02]} 24. axb3 {[%clk 0:00:36]}  Rc6 {[%clk 0:01:58]} 25. Bg5 {[%clk 0:00:19]}  Ne4 {[%clk 0:01:55]} 26. Be3 {[%clk 0:00:10]}  Rd8 {[%clk 0:01:46]} 27. Ra7 {[%clk 0:00:10]}  d5 {[%clk 0:01:43]} 28. Ra1 {[%clk 0:00:09]}  d4 {[%clk 0:01:43]} 29. Bg5 {[%clk 0:00:09]}  Nxg5 {[%clk 0:01:36]} 30. Nxg5 {[%clk 0:00:10]}  d3 {[%clk 0:01:37]} 31. Nxf7 {[%clk 0:00:10]}  d2 {[%clk 0:01:36]} 32. Nxd8 {[%clk 0:00:07]}  Rc1+ {[%clk 0:01:37]} 33. Kh2 {[%clk 0:00:08]}  Rxa1 {[%clk 0:01:37]} 34. Ne6 {[%clk 0:00:08]}  Bf6 {[%clk 0:01:23]} 0-1


[Site "https://www.chess.com"]

[Event "Titled Tuesday Blitz October 26 2021"]
[White "Bernadskiy, Vitaliy"]
[Black "Petesch, Gabriel"]
[WhiteFideId "14100371"]
[BlackFideId "2032465"]
[WhiteElo "2510"]
[BlackElo "2374"]
[Result "0-1"]
[Round "04"]
[TimeControl "180+1"]
[Date "2021.10.26"]
[WhiteClock "0:00:32"]
[BlackClock "0:00:10"]

1. d4 {[%clk 0:03:00]}  d5 {[%clk 0:02:58]} 2. c4 {[%clk 0:02:57]}  dxc4 {[%clk 0:02:59]} 3. Nf3 {[%clk 0:02:55]}  Nf6 {[%clk 0:02:58]} 4. Na3 {[%clk 0:02:56]}  c5 {[%clk 0:02:51]} 5. Nxc4 {[%clk 0:02:54]}  cxd4 {[%clk 0:02:45]} 6. Nxd4 {[%clk 0:02:55]}  a6 {[%clk 0:02:31]} 7. g3 {[%clk 0:02:53]}  Qd5 {[%clk 0:02:13]} 8. Bf4 {[%clk 0:01:47]}  e5 {[%clk 0:01:50]} 9. Rc1 {[%clk 0:01:06]}  exf4 {[%clk 0:01:28]} 10. Qa4+ {[%clk 0:00:44]}  Bd7 {[%clk 0:00:57]} 11. Nb6 {[%clk 0:00:43]}  Bxa4 {[%clk 0:00:41]} 12. Nxd5 {[%clk 0:00:43]}  Nxd5 {[%clk 0:00:42]} 13. Rc8+ {[%clk 0:00:42]}  Ke7 {[%clk 0:00:38]} 14. Bg2 {[%clk 0:00:41]}  Kd7 {[%clk 0:00:22]} 15. Bh3+ {[%clk 0:00:40]}  Ke7 {[%clk 0:00:20]} 16. O-O {[%clk 0:00:40]}  Bd7 {[%clk 0:00:15]} 17. Bxd7 {[%clk 0:00:37]}  Kxd7 {[%clk 0:00:15]} 18. Rfc1 {[%clk 0:00:38]}  g6 {[%clk 0:00:08]} 19. R8c5 {[%clk 0:00:35]}  Bxc5 {[%clk 0:00:08]} 20. Rxc5 {[%clk 0:00:35]}  Nb6 {[%clk 0:00:09]} 21. Nf3 {[%clk 0:00:34]}  Rc8 {[%clk 0:00:08]} 22. Ne5+ {[%clk 0:00:33]}  Ke6 {[%clk 0:00:09]} 23. Rxc8 {[%clk 0:00:32]}  Nxc8 {[%clk 0:00:10]} 0-1


[Site "https://www.chess.com"]

[Event "Titled Tuesday Blitz October 26 2021"]
[White "Bluebaum, Matthias"]
[Black "Begmuratov, Khumoyun"]
[WhiteFideId "24651516"]
[BlackFideId "14210207"]
[WhiteElo "2681"]
[BlackElo "1948"]
[Result "1-0"]
[Round "04"]
[TimeControl "180+1"]
[Date "2021.10.26"]
[WhiteClock "0:00:07"]
[BlackClock "0:00:02"]

1. d4 {[%clk 0:03:00]}  Nf6 {[%clk 0:02:59]} 2. Nf3 {[%clk 0:03:00]}  g6 {[%clk 0:02:59]} 3. Nc3 {[%clk 0:03:00]}  d5 {[%clk 0:02:59]} 4. Bf4 {[%clk 0:03:00]}  Bg7 {[%clk 0:02:59]} 5. e3 {[%clk 0:03:01]}  O-O {[%clk 0:02:59]} 6. Nb5 {[%clk 0:03:02]}  Na6 {[%clk 0:02:58]} 7. h3 {[%clk 0:03:02]}  c6 {[%clk 0:02:58]} 8. Nc3 {[%clk 0:03:03]}  Nc7 {[%clk 0:02:55]} 9. Be2 {[%clk 0:03:02]}  b5 {[%clk 0:02:44]} 10. O-O {[%clk 0:02:56]}  a5 {[%clk 0:02:39]} 11. Ne5 {[%clk 0:02:53]}  Bb7 {[%clk 0:02:37]} 12. Bf3 {[%clk 0:02:44]}  Nd7 {[%clk 0:02:31]} 13. Nxd7 {[%clk 0:02:10]}  Qxd7 {[%clk 0:02:32]} 14. Ne2 {[%clk 0:02:10]}  c5 {[%clk 0:02:18]} 15. c3 {[%clk 0:02:03]}  c4 {[%clk 0:02:15]} 16. b3 {[%clk 0:01:53]}  Bc6 {[%clk 0:01:58]} 17. Qc2 {[%clk 0:01:52]}  Rfc8 {[%clk 0:01:54]} 18. Rfc1 {[%clk 0:01:45]}  a4 {[%clk 0:01:43]} 19. bxc4 {[%clk 0:01:43]}  bxc4 {[%clk 0:01:43]} 20. Rab1 {[%clk 0:01:37]}  Nb5 {[%clk 0:01:43]} 21. Rb2 {[%clk 0:01:31]}  e6 {[%clk 0:01:37]} 22. Qd2 {[%clk 0:01:23]}  Bf8 {[%clk 0:01:33]} 23. Rbb1 {[%clk 0:01:24]}  Ra7 {[%clk 0:01:17]} 24. Ng3 {[%clk 0:01:21]}  Rb7 {[%clk 0:01:12]} 25. e4 {[%clk 0:01:21]}  Bd6 {[%clk 0:01:07]} 26. exd5 {[%clk 0:01:17]}  Bxd5 {[%clk 0:01:03]} 27. Bxd5 {[%clk 0:01:14]}  exd5 {[%clk 0:01:04]} 28. Bxd6 {[%clk 0:01:13]}  Nxd6 {[%clk 0:01:02]} 29. Rxb7 {[%clk 0:01:08]}  Qxb7 {[%clk 0:01:03]} 30. Qc2 {[%clk 0:01:08]}  a3 {[%clk 0:00:55]} 31. Rb1 {[%clk 0:01:07]}  Qe7 {[%clk 0:00:54]} 32. Qa4 {[%clk 0:01:05]}  Ne8 {[%clk 0:00:44]} 33. Qa6 {[%clk 0:00:58]}  Rd8 {[%clk 0:00:34]} 34. Qa5 {[%clk 0:00:51]}  Nf6 {[%clk 0:00:33]} 35. Kh2 {[%clk 0:00:43]}  h5 {[%clk 0:00:30]} 36. Nf1 {[%clk 0:00:17]}  Ne4 {[%clk 0:00:30]} 37. Kg1 {[%clk 0:00:17]}  Qg5 {[%clk 0:00:22]} 38. Ne3 {[%clk 0:00:14]}  Qf6 {[%clk 0:00:15]} 39. Rf1 {[%clk 0:00:12]}  Nd2 {[%clk 0:00:13]} 40. Re1 {[%clk 0:00:13]}  Ne4 {[%clk 0:00:13]} 41. Re2 {[%clk 0:00:14]}  Qg5 {[%clk 0:00:08]} 42. Qxa3 {[%clk 0:00:09]}  Rb8 {[%clk 0:00:07]} 43. Rb2 {[%clk 0:00:09]}  Re8 {[%clk 0:00:06]} 44. Re2 {[%clk 0:00:06]}  Rb8 {[%clk 0:00:06]} 45. Qc1 {[%clk 0:00:07]}  h4 {[%clk 0:00:04]} 46. Rb2 {[%clk 0:00:07]}  Qf4 {[%clk 0:00:04]} 47. Rxb8+ {[%clk 0:00:07]}  Qxb8 {[%clk 0:00:05]} 48. Nxd5 {[%clk 0:00:08]}  Qd6 {[%clk 0:00:05]} 49. Ne3 {[%clk 0:00:08]}  Qf4 {[%clk 0:00:05]} 50. Qe1 {[%clk 0:00:07]}  Qc7 {[%clk 0:00:04]} 51. Nd5 {[%clk 0:00:07]}  Qf4 {[%clk 0:00:02]} 52. Nxf4 {[%clk 0:00:07]} 1-0


[Site "https://www.chess.com"]

[Event "Titled Tuesday Blitz October 26 2021"]
[White "Cardoso Cardoso, Jose Gabriel"]
[Black "Fries-Nielsen, Jens Ove"]
[WhiteFideId "4430492"]
[BlackFideId "1400142"]
[WhiteElo "2343"]
[BlackElo "2556"]
[Result "1-0"]
[Round "04"]
[TimeControl "180+1"]
[Date "2021.10.26"]
[WhiteClock "0:00:05"]
[BlackClock "0:00:42"]

1. d4 {[%clk 0:03:00]}  d6 {[%clk 0:02:56]} 2. Nc3 {[%clk 0:02:58]}  Nf6 {[%clk 0:02:57]} 3. e4 {[%clk 0:02:55]}  Nc6 {[%clk 0:02:57]} 4. f4 {[%clk 0:02:53]}  e6 {[%clk 0:02:57]} 5. Nf3 {[%clk 0:02:53]}  g6 {[%clk 0:02:57]} 6. e5 {[%clk 0:02:52]}  Nd5 {[%clk 0:02:55]} 7. Ne4 {[%clk 0:02:50]}  Bg7 {[%clk 0:02:51]} 8. a3 {[%clk 0:02:34]}  O-O {[%clk 0:02:49]} 9. Bd3 {[%clk 0:02:29]}  Nce7 {[%clk 0:02:48]} 10. Qe2 {[%clk 0:02:17]}  a6 {[%clk 0:02:45]} 11. c4 {[%clk 0:02:12]}  Nb6 {[%clk 0:02:45]} 12. Be3 {[%clk 0:02:07]}  d5 {[%clk 0:02:42]} 13. cxd5 {[%clk 0:02:00]}  Nexd5 {[%clk 0:02:42]} 14. Bd2 {[%clk 0:01:55]}  Bd7 {[%clk 0:02:31]} 15. h4 {[%clk 0:01:51]}  f5 {[%clk 0:02:22]} 16. Nc5 {[%clk 0:01:46]}  h5 {[%clk 0:02:18]} 17. Ng5 {[%clk 0:01:36]}  Qe7 {[%clk 0:02:16]} 18. Rc1 {[%clk 0:01:34]}  Rab8 {[%clk 0:02:15]} 19. O-O {[%clk 0:01:30]}  Bh6 {[%clk 0:02:15]} 20. Rc2 {[%clk 0:01:21]}  Qe8 {[%clk 0:02:09]} 21. Nh3 {[%clk 0:01:17]}  Bb5 {[%clk 0:02:07]} 22. Rfc1 {[%clk 0:01:13]}  Bxd3 {[%clk 0:02:06]} 23. Qxd3 {[%clk 0:01:10]}  Qe7 {[%clk 0:02:05]} 24. g3 {[%clk 0:01:07]}  Rfd8 {[%clk 0:02:05]} 25. a4 {[%clk 0:01:06]}  Nd7 {[%clk 0:02:00]} 26. Nb3 {[%clk 0:01:01]}  c6 {[%clk 0:01:59]} 27. Kg2 {[%clk 0:00:54]}  Kh7 {[%clk 0:01:56]} 28. Ba5 {[%clk 0:00:51]}  b6 {[%clk 0:01:53]} 29. Be1 {[%clk 0:00:49]}  c5 {[%clk 0:01:52]} 30. Qxa6 {[%clk 0:00:48]}  Ne3+ {[%clk 0:01:51]} 31. Kf3 {[%clk 0:00:47]}  Nxc2 {[%clk 0:01:51]} 32. Rxc2 {[%clk 0:00:48]}  Rdc8 {[%clk 0:01:50]} 33. Nf2 {[%clk 0:00:31]}  Qd8 {[%clk 0:01:48]} 34. Rd2 {[%clk 0:00:18]}  Qc7 {[%clk 0:01:47]} 35. Qb5 {[%clk 0:00:17]}  c4 {[%clk 0:01:46]} 36. Nc1 {[%clk 0:00:15]}  Qb7+ {[%clk 0:01:46]} 37. Ke2 {[%clk 0:00:14]}  Qd5 {[%clk 0:01:45]} 38. Na2 {[%clk 0:00:11]}  Qxb5 {[%clk 0:01:35]} 39. axb5 {[%clk 0:00:12]}  Ra8 {[%clk 0:01:33]} 40. Nc3 {[%clk 0:00:11]}  Ra1 {[%clk 0:01:29]} 41. d5 {[%clk 0:00:11]}  exd5 {[%clk 0:01:28]} 42. Rxd5 {[%clk 0:00:11]}  Nc5 {[%clk 0:01:29]} 43. Rd6 {[%clk 0:00:11]}  Rb8 {[%clk 0:01:27]} 44. Rc6 {[%clk 0:00:10]}  Nb3 {[%clk 0:01:24]} 45. Rc7+ {[%clk 0:00:09]}  Kg8 {[%clk 0:01:23]} 46. Nd5 {[%clk 0:00:08]}  Bg7 {[%clk 0:01:24]} 47. Ne7+ {[%clk 0:00:07]}  Kh7 {[%clk 0:01:24]} 48. Nc6 {[%clk 0:00:07]}  Re8 {[%clk 0:01:17]} 49. Bc3 {[%clk 0:00:08]}  Nc5 {[%clk 0:01:14]} 50. Nh3 {[%clk 0:00:04]}  Ne4 {[%clk 0:01:12]} 51. Ng5+ {[%clk 0:00:05]}  Nxg5 {[%clk 0:01:12]} 52. hxg5 {[%clk 0:00:04]}  Kg8 {[%clk 0:01:08]} 53. Ne7+ {[%clk 0:00:04]}  Kh7 {[%clk 0:01:08]} 54. Nd5 {[%clk 0:00:04]}  Kh8 {[%clk 0:01:07]} 55. Kf2 {[%clk 0:00:04]}  Rd1 {[%clk 0:01:05]} 56. Nf6 {[%clk 0:00:04]}  Red8 {[%clk 0:01:04]} 57. e6 {[%clk 0:00:05]}  Rc1 {[%clk 0:00:54]} 58. e7 {[%clk 0:00:04]}  Rc2+ {[%clk 0:00:54]} 59. Ke1 {[%clk 0:00:02]}  Ra8 {[%clk 0:00:53]} 60. e8=Q+ {[%clk 0:00:02]}  Rxe8+ {[%clk 0:00:53]} 61. Nxe8 {[%clk 0:00:03]}  Bxc3+ {[%clk 0:00:53]} 62. bxc3 {[%clk 0:00:04]}  Kg8 {[%clk 0:00:53]} 63. Nf6+ {[%clk 0:00:04]}  Kf8 {[%clk 0:00:53]} 64. Rc6 {[%clk 0:00:04]}  Rxc3 {[%clk 0:00:52]} 65. Rxb6 {[%clk 0:00:04]}  Rxg3 {[%clk 0:00:52]} 66. Rc6 {[%clk 0:00:04]}  Rb3 {[%clk 0:00:51]} 67. b6 {[%clk 0:00:03]}  h4 {[%clk 0:00:51]} 68. Rc7 {[%clk 0:00:04]}  h3 {[%clk 0:00:50]} 69. b7 {[%clk 0:00:02]}  h2 {[%clk 0:00:49]} 70. Rh7 {[%clk 0:00:03]}  Rxb7 {[%clk 0:00:43]} 71. Rxh2 {[%clk 0:00:03]}  Rb1+ {[%clk 0:00:43]} 72. Kf2 {[%clk 0:00:03]}  Rb2+ {[%clk 0:00:43]} 73. Kg3 {[%clk 0:00:04]}  Rxh2 {[%clk 0:00:43]} 74. Kxh2 {[%clk 0:00:04]}  c3 {[%clk 0:00:44]} 75. Nd7+ {[%clk 0:00:04]}  Ke7 {[%clk 0:00:43]} 76. Nc5 {[%clk 0:00:04]}  Kd6 {[%clk 0:00:43]} 77. Nb3 {[%clk 0:00:03]}  Kd5 {[%clk 0:00:43]} 78. Kg3 {[%clk 0:00:04]}  Kc4 {[%clk 0:00:43]} 79. Nc1 {[%clk 0:00:04]}  c2 {[%clk 0:00:43]} 80. Kf3 {[%clk 0:00:04]}  Kc3 {[%clk 0:00:43]} 81. Ke3 {[%clk 0:00:05]}  Kc4 {[%clk 0:00:42]} 82. Kd2 {[%clk 0:00:04]}  Kd4 {[%clk 0:00:42]} 83. Kxc2 {[%clk 0:00:04]}  Ke4 {[%clk 0:00:42]} 84. Nd3 {[%clk 0:00:05]}  Ke3 {[%clk 0:00:42]} 85. Kc3 {[%clk 0:00:05]} 1-0


[Site "https://www.chess.com"]

[Event "Titled Tuesday Blitz October 26 2021"]
[White "Carnicelli, Valerio"]
[Black "Sanal, Vahap"]
[WhiteFideId "856185"]
[BlackFideId "6300545"]
[WhiteElo "2332"]
[BlackElo "2492"]
[Result "1-0"]
[Round "04"]
[TimeControl "180+1"]
[Date "2021.10.26"]
[WhiteClock "0:00:04"]
[BlackClock "0:00:02"]

1. e4 {[%clk 0:03:00]}  c5 {[%clk 0:02:59]} 2. Nf3 {[%clk 0:03:00]}  e6 {[%clk 0:02:59]} 3. d4 {[%clk 0:03:00]}  cxd4 {[%clk 0:03:00]} 4. Nxd4 {[%clk 0:03:01]}  a6 {[%clk 0:03:01]} 5. g3 {[%clk 0:03:01]}  b5 {[%clk 0:03:00]} 6. Bg2 {[%clk 0:03:01]}  Bb7 {[%clk 0:03:01]} 7. O-O {[%clk 0:03:01]}  Nf6 {[%clk 0:03:01]} 8. Re1 {[%clk 0:02:56]}  Qc7 {[%clk 0:03:00]} 9. a4 {[%clk 0:02:54]}  b4 {[%clk 0:02:59]} 10. c3 {[%clk 0:02:55]}  Be7 {[%clk 0:02:57]} 11. e5 {[%clk 0:02:37]}  Nd5 {[%clk 0:02:56]} 12. Nf5 {[%clk 0:02:37]}  exf5 {[%clk 0:02:48]} 13. Bxd5 {[%clk 0:02:37]}  O-O {[%clk 0:02:44]} 14. Bf4 {[%clk 0:02:31]}  Qc8 {[%clk 0:02:21]} 15. Qd3 {[%clk 0:02:12]}  Nc6 {[%clk 0:02:10]} 16. Nd2 {[%clk 0:01:54]}  g6 {[%clk 0:01:59]} 17. Nc4 {[%clk 0:01:53]}  Bc5 {[%clk 0:01:59]} 18. Nd6 {[%clk 0:01:48]}  Qc7 {[%clk 0:01:45]} 19. Nxf7 {[%clk 0:01:34]}  Ne7 {[%clk 0:01:45]} 20. Bc4 {[%clk 0:00:51]}  Qb6 {[%clk 0:01:35]} 21. Nd6+ {[%clk 0:00:46]}  Kg7 {[%clk 0:01:34]} 22. Re2 {[%clk 0:00:33]}  Rad8 {[%clk 0:01:17]} 23. a5 {[%clk 0:00:31]}  Qc7 {[%clk 0:01:11]} 24. e6 {[%clk 0:00:22]}  Qc6 {[%clk 0:00:57]} 25. Nxb7 {[%clk 0:00:22]}  Qxb7 {[%clk 0:00:57]} 26. Be5+ {[%clk 0:00:22]}  Kh6 {[%clk 0:00:50]} 27. Qd2+ {[%clk 0:00:21]}  g5 {[%clk 0:00:50]} 28. h4 {[%clk 0:00:21]}  f4 {[%clk 0:00:41]} 29. hxg5+ {[%clk 0:00:21]}  Kh5 {[%clk 0:00:41]} 30. gxf4 {[%clk 0:00:15]}  dxe6 {[%clk 0:00:40]} 31. Qc2 {[%clk 0:00:15]}  Ng6 {[%clk 0:00:37]} 32. Re3 {[%clk 0:00:06]}  Nxf4 {[%clk 0:00:22]} 33. Bxf4 {[%clk 0:00:05]}  Rxf4 {[%clk 0:00:22]} 34. Qe2+ {[%clk 0:00:04]}  Kh4 {[%clk 0:00:16]} 35. Rh3+ {[%clk 0:00:02]}  Kxg5 {[%clk 0:00:12]} 36. Qh5+ {[%clk 0:00:02]}  Kf6 {[%clk 0:00:12]} 37. Qh6+ {[%clk 0:00:02]}  Kf5 {[%clk 0:00:05]} 38. Qxe6+ {[%clk 0:00:02]}  Kg5 {[%clk 0:00:05]} 39. Qh6+ {[%clk 0:00:02]}  Kf5 {[%clk 0:00:05]} 40. Rh5+ {[%clk 0:00:03]}  Ke4 {[%clk 0:00:01]} 41. Re1+ {[%clk 0:00:03]}  Kf3 {[%clk 0:00:01]} 42. Rh3+ {[%clk 0:00:03]}  Kg4 {[%clk 0:00:02]} 43. Qh5# {[%clk 0:00:04]} 1-0


[Site "https://www.chess.com"]